bitfinex/quotes_BTCUSD_20251212
["timestamp","ask_amount","ask_price","bid_price","bid_amount"]
[1765550520128,0.05398098,92568.0,92567.0,0.21605971]
[1765550520550,0.05798098,92568.0,92567.0,0.21705971]
[1765550520767,0.00796259,92568.0,92567.0,0.26002258]
[1765550521388,0.00496259,92568.0,92567.0,0.26002258]
[1765550521832,0.00196259,92568.0,92567.0,0.26002258]
[1765550522041,0.00296259,92568.0,92567.0,0.26502258]
[1765550522471,0.00096259,92568.0,92567.0,0.25134258]
[1765550522676,0.00096259,92568.0,92567.0,0.28030258]
[1765550522891,0.00296259,92568.0,92567.0,0.28330258]
[1765550523182,0.26803836,92568.0,92567.0,0.004]
[1765550523392,0.34367384,92568.0,92567.0,0.004]
[1765550523597,0.06082137,92567.0,92562.0,0.22687494]
[1765550523901,0.06082137,92567.0,92560.0,0.0108038]
[1765550523902,0.00043119,92563.0,92560.0,0.0108038]
[1765550524113,0.09452912,92567.0,92565.0,0.21606438]
[1765550524312,0.05001839,92567.0,92565.0,0.21606438]
[1765550524519,0.01080321,92565.0,92560.0,0.0108038]
[1765550524720,0.23743706,92566.0,92560.0,0.0108038]
[1765550524721,0.01057191,92566.0,92563.0,0.22687078]
[1765550524964,0.05001839,92567.0,92565.0,0.21606438]
[1765550525363,0.0003877,92568.0,92565.0,0.22686759]
[1765550525739,0.0013877,92568.0,92567.0,0.004]
[1765550526148,0.0003877,92568.0,92565.0,0.22686759]
[1765550526584,0.0023877,92568.0,92565.0,0.23286759]
[1765550526816,0.0023877,92568.0,92565.0,0.006]
[1765550526817,0.0834755,92567.0,92565.0,0.006]
[1765550527053,0.33759892,92566.0,92565.0,0.003]
[1765550527255,0.31059117,92566.0,92565.0,0.003]
[1765550527663,0.01080426,92556.0,92552.0,0.22689946]
[1765550527864,0.04451073,92559.0,92555.0,0.01080438]
[1765550528065,0.04451073,92559.0,92554.0,0.21609006]
[1765550528066,0.01080403,92558.0,92554.0,0.0108045]
[1765550528253,0.04451073,92559.0,92555.0,0.01080438]
[1765550528466,0.04451073,92559.0,92557.0,0.21608306]
[1765550528689,0.05001839,92561.0,92560.0,0.21607605]
[1765550529426,0.0503921,92561.0,92560.0,0.21607605]
[1765550529660,0.00037371,92561.0,92560.0,0.21607605]
[1765550530275,0.22687985,92560.0,92557.0,0.001]
[1765550530424,0.26059145,92558.0,92557.0,0.001]
[1765550531264,0.004,92561.0,92559.0,0.21607839]
[1765550531573,0.004,92561.0,92560.0,0.01639]
[1765550531797,0.004,92561.0,92560.0,0.40167073]
[1765550531798,0.007,92561.0,92560.0,0.40167073]
[1765550531928,0.0003877,92568.0,92565.0,0.01080321]
[1765550532148,0.0003877,92568.0,92567.0,0.01800287]
[1765550532348,0.0003877,92568.0,92567.0,0.02356727]
[1765550532549,0.0003877,92568.0,92567.0,0.04852727]
[1765550533339,0.0003877,92568.0,92567.0,0.01885287]
[1765550533490,0.0003877,92568.0,92567.0,0.003]
[1765550533491,0.05140609,92568.0,92567.0,0.003]
[1765550533702,0.08368285,92568.0,92567.0,0.003]
[1765550533897,0.01080368,92561.0,92555.0,0.22689161]
[1765550534101,0.04451073,92558.0,92556.0,0.01080426]
[1765550534307,0.05001839,92561.0,92559.0,0.2268823]
[1765550534513,0.05001839,92555.0,92550.0,0.01080497]
[1765550534863,0.05001839,92542.0,92539.0,0.01080625]
[1765550534988,0.05001839,92542.0,92541.0,0.22692603]
[1765550535194,0.05001839,92543.0,92541.0,0.01080602]
[1765550535597,0.05001839,92545.0,92543.0,0.21611575]
[1765550536187,0.05001839,92546.0,92545.0,0.21611108]
[1765550536388,0.06082336,92550.0,92546.0,0.01080543]
[1765550536683,0.01080403,92558.0,92550.0,0.01080497]
[1765550536936,0.05001839,92557.0,92554.0,0.22689381]
[1765550537143,0.05001839,92566.0,92564.0,0.01080333]
[1765550537520,0.09452912,92563.0,92562.0,0.01080356]
[1765550537779,0.01080426,92556.0,92551.0,0.01080485]
[1765550537917,0.05001839,92560.0,92553.0,0.01080462]
[1765550537918,0.04451073,92554.0,92553.0,0.01080462]
[1765550538302,0.05001839,92567.0,92566.0,0.21606205]
[1765550538514,0.0003877,92568.0,92566.0,0.21606205]
[1765550539976,0.05001839,92567.0,92566.0,0.22006205]
[1765550540177,0.0013877,92568.0,92566.0,0.22167492]
[1765550540399,0.0023877,92568.0,92566.0,0.22167492]
[1765550540607,0.0013877,92568.0,92567.0,0.04021]
[1765550540831,0.0013877,92568.0,92567.0,0.04182287]
[1765550541670,0.0003877,92568.0,92567.0,0.05906287]
[1765550542091,0.00096259,92568.0,92567.0,0.05906287]
[1765550542520,0.00096259,92568.0,92567.0,0.06106287]
[1765550542891,0.00196259,92568.0,92567.0,0.06406287]
[1765550543296,0.00096259,92568.0,92567.0,0.05906287]
[1765550543824,0.00196259,92568.0,92567.0,0.06506287]
[1765550544027,0.00196259,92568.0,92567.0,0.02485287]
[1765550544166,0.00196259,92568.0,92567.0,0.06506287]
[1765550544792,0.00196259,92568.0,92567.0,0.04128287]
[1765550544986,0.00196259,92568.0,92567.0,0.00761287]
[1765550545190,0.00196259,92568.0,92567.0,0.00661287]
[1765550545605,0.00096259,92568.0,92567.0,0.00161287]
[1765550546116,0.00196259,92568.0,92567.0,0.00661287]
[1765550546420,0.00096259,92568.0,92567.0,0.00161287]
[1765550546635,0.00096259,92568.0,92561.0,0.01080368]
[1765550546636,0.01080345,92563.0,92556.0,0.01080426]
[1765550546839,0.06019463,92563.0,92559.0,0.01080391]
[1765550547061,0.05001839,92565.0,92559.0,0.01080391]
[1765550547451,0.05001839,92565.0,92564.0,0.21606672]
[1765550547694,0.05001839,92565.0,92561.0,0.01080368]
[1765550547695,0.01080321,92565.0,92561.0,0.01080368]
[1765550547901,0.05001839,92566.0,92557.0,0.01080415]
[1765550548102,0.09452912,92558.0,92557.0,0.01080415]
[1765550548527,0.05001839,92558.0,92557.0,0.01080415]
[1765550548917,0.0013877,92568.0,92566.0,0.21605973]
[1765550549120,0.005,92566.0,92564.0,0.22686907]
[1765550549328,0.0608216,92565.0,92560.0,0.0108038]
[1765550549534,0.05001839,92559.0,92557.0,0.01080415]
[1765550549749,0.05401839,92558.0,92557.0,0.001]
[1765550550171,0.09452912,92557.0,92556.0,0.001]
[1765550550579,0.06082195,92562.0,92556.0,0.01180426]
[1765550550784,0.05001839,92557.0,92556.0,0.01180426]
[1765550551211,0.05001839,92557.0,92556.0,0.001]
[1765550551409,0.08225934,92557.0,92556.0,0.001]
[1765550551828,0.12677007,92557.0,92556.0,0.001]
[1765550552031,0.09452912,92550.0,92549.0,0.22690679]
[1765550552701,0.003,92558.0,92557.0,0.21608306]
[1765550552902,0.05001839,92558.0,92557.0,0.21608306]
[1765550554760,0.05001839,92557.0,92555.0,0.22689032]
[1765550554998,0.05401839,92558.0,92557.0,0.001]
[1765550555199,0.37264129,92558.0,92557.0,0.001]
[1765550555396,0.37664129,92558.0,92557.0,0.002]
[1765550555549,0.05801839,92558.0,92557.0,0.002]
[1765550555750,0.05801839,92558.0,92557.0,0.001]
[1765550555751,0.05401839,92558.0,92557.0,0.001]
[1765550556004,0.05401839,92558.0,92557.0,0.21708306]
[1765550556419,0.05401839,92558.0,92557.0,0.001]
[1765550556740,0.37939408,92558.0,92557.0,0.001]
[1765550556955,0.42390481,92558.0,92557.0,0.001]
[1765550557373,1.92654861,92558.0,92557.0,0.001]
[1765550557580,1.90366461,92558.0,92557.0,0.001]
[1765550557920,1.90795209,92558.0,92557.0,0.001]
[1765550558470,1.90095209,92558.0,92557.0,0.001]
[1765550558666,1.90995209,92558.0,92557.0,0.001]
[1765550558966,1.90095209,92558.0,92557.0,0.001]
[1765550559844,0.04451073,92531.0,92530.0,0.0108073]
[1765550560049,0.0066124,92531.0,92526.0,0.01080777]
[1765550560179,0.04451073,92527.0,92524.0,0.22696792]
[1765550560383,0.04451073,92527.0,92513.0,0.21618115]
[1765550560384,0.01080788,92525.0,92513.0,0.21618115]
[1765550560746,0.04451073,92508.0,92506.0,0.0108101]
[1765550560947,0.04451073,92508.0,92507.0,0.21619985]
[1765550561179,0.26621824,92507.0,92506.0,0.00011633]
[1765550561380,0.31072897,92507.0,92506.0,0.00011633]
[1765550561581,0.09452912,92507.0,92506.0,0.00011633]
[1765550562225,0.001,92508.0,92507.0,0.21619985]
[1765550562428,0.05001839,92515.0,92514.0,0.21618349]
[1765550562429,0.09452912,92515.0,92514.0,0.21618349]
[1765550563672,0.09452912,92522.0,92521.0,0.01080835]
[1765550563874,0.05001839,92522.0,92521.0,0.01080835]
[1765550564105,0.05001839,92519.0,92515.0,0.01080905]
[1765550564275,0.05001839,92507.0,92506.0,0.00011633]
[1765550564453,0.09452912,92507.0,92506.0,0.00011633]
[1765550565479,0.09852912,92507.0,92506.0,0.00011633]
[1765550566300,0.09852912,92507.0,92506.0,0.00111633]
[1765550566301,0.04851073,92507.0,92506.0,0.00111633]
[1765550567729,0.10252912,92507.0,92506.0,0.00111633]
[1765550567945,0.07125839,92507.0,92506.0,0.00111633]
[1765550568158,0.11576912,92507.0,92506.0,0.00111633]
[1765550568362,0.17782778,92507.0,92506.0,0.00111633]
[1765550568563,0.17382778,92507.0,92506.0,0.00111633]
[1765550568980,0.17382778,92507.0,92506.0,0.00011633]
[1765550569194,0.42001705,92507.0,92506.0,0.00011633]
[1765550569398,0.96496978,92507.0,92506.0,0.00111633]
[1765550569891,0.96096978,92507.0,92506.0,0.00011633]
[1765550570299,0.96496978,92507.0,92506.0,0.00111633]
[1765550570716,0.96096978,92507.0,92506.0,0.00111633]
[1765550570925,0.55029412,92507.0,92506.0,0.00011633]
[1765550571398,0.54429412,92507.0,92506.0,0.00011633]
[1765550571603,0.55029412,92507.0,92506.0,0.00011633]
[1765550571822,0.65480174,92507.0,92506.0,0.00011633]
[1765550572238,0.66180174,92507.0,92506.0,0.00011633]
[1765550572482,0.66180174,92507.0,92473.0,0.01]
[1765550572483,0.31080612,92474.0,92473.0,0.01]
[1765550572689,0.31080612,92474.0,92473.0,0.01011627]
[1765550572906,0.09452912,92474.0,92473.0,0.01011627]
[1765550573135,0.05001839,92474.0,92473.0,0.01011627]
[1765550573982,0.05301839,92474.0,92473.0,0.01011627]
[1765550574600,0.09852912,92474.0,92473.0,0.01011627]
[1765550574801,0.09452912,92474.0,92473.0,0.01011627]
[1765550575252,0.09852912,92474.0,92473.0,0.01111627]
[1765550576179,0.15660724,92474.0,92473.0,0.01111627]
[1765550576626,0.15560724,92474.0,92473.0,0.01011627]
[1765550577045,0.44930724,92474.0,92473.0,0.01011627]
[1765550577929,0.44930724,92474.0,92473.0,0.01272879]
[1765550578333,0.39122912,92474.0,92473.0,0.01272879]
[1765550578760,0.05601839,92474.0,92473.0,0.22900813]
[1765550579007,0.05601839,92474.0,92473.0,0.230621]
[1765550579008,0.006,92474.0,92473.0,0.230621]
[1765550579212,0.006,92474.0,92473.0,0.270471]
[1765550579646,0.003,92474.0,92473.0,0.270471]
[1765550580056,0.007,92474.0,92473.0,0.270471]
[1765550580486,0.01728,92496.0,92487.0,0.01081233]
[1765550580487,0.04451073,92495.0,92487.0,0.01081233]
[1765550580657,0.07704717,92494.0,92493.0,0.21623257]
[1765550580947,0.04451073,92495.0,92493.0,0.21623257]
[1765550581135,0.01080999,92507.0,92499.0,0.01081092]
[1765550581363,0.04451073,92504.0,92503.0,0.01081046]
[1765550581563,0.02312091,92534.0,92503.0,0.01081046]
[1765550581564,0.04451073,92512.0,92511.0,0.01080952]
[1765550581723,0.01728,92516.0,92510.0,0.01080964]
[1765550581724,0.01080917,92514.0,92510.0,0.01080964]
[1765550581927,0.01080917,92514.0,92511.0,0.01080952]
[1765550582136,0.02323132,92513.0,92511.0,0.01080952]
[1765550582306,0.02702352,92512.0,92506.0,0.21620031]
[1765550582508,0.30798,92516.0,92506.0,0.21620031]
[1765550582509,0.30798,92516.0,92513.0,0.01080929]
[1765550582706,0.04451073,92514.0,92513.0,0.01080929]
[1765550583534,0.04494661,92547.0,92513.0,0.01080929]
[1765550583535,0.05531803,92530.0,92518.0,0.21617181]
[1765550583704,0.00011627,92530.0,92524.0,0.010808]
[1765550584057,0.0554343,92530.0,92527.0,0.01080765]
[1765550584332,0.26920188,92514.0,92513.0,0.00161287]
[1765550584456,0.05001839,92494.0,92487.0,0.01081233]
[1765550584660,0.05001839,92494.0,92486.0,0.22797844]
[1765550584661,0.05001839,92488.0,92483.0,0.01081279]
[1765550584866,0.12155965,92488.0,92483.0,0.01081279]
[1765550585060,0.05001839,92486.0,92483.0,0.01081279]
[1765550585271,0.05001839,92486.0,92477.0,0.216269]
[1765550585272,0.26629539,92474.0,92473.0,0.01]
[1765550585475,0.32808612,92474.0,92473.0,0.01]
[1765550585669,0.06729839,92474.0,92473.0,0.01011627]
[1765550587206,0.11180912,92474.0,92473.0,0.01011627]
[1765550587621,0.11580912,92474.0,92473.0,0.01272879]
[1765550588175,0.05701839,92474.0,92473.0,0.01272879]
[1765550588352,0.11880912,92474.0,92473.0,0.01272879]
[1765550588561,0.07429839,92474.0,92473.0,0.01272879]
[1765550588750,0.15634618,92474.0,92473.0,0.01272879]
[1765550589098,0.15934618,92474.0,92473.0,0.01272879]
[1765550589686,0.11880912,92474.0,92473.0,0.01272879]
[1765550589886,0.07429839,92474.0,92473.0,0.01272879]
[1765550590208,0.05701839,92474.0,92473.0,0.22900813]
[1765550590475,0.07429839,92474.0,92473.0,0.22900813]
[1765550590659,0.007,92474.0,92473.0,0.230621]
[1765550591098,0.007,92474.0,92473.0,0.270471]
[1765550592139,0.004,92474.0,92473.0,0.230621]
[1765550592345,0.004,92474.0,92473.0,0.270471]
[1765550592685,0.005,92474.0,92473.0,0.270471]
[1765550593297,0.005,92474.0,92473.0,0.230621]
[1765550593513,0.001,92474.0,92473.0,0.230621]
[1765550593721,0.002,92474.0,92473.0,0.230621]
[1765550594125,0.001,92474.0,92473.0,0.230621]
[1765550594377,0.002,92474.0,92473.0,0.270471]
[1765550594580,0.001,92474.0,92473.0,0.287751]
[1765550594883,0.21619261,92511.0,92473.0,0.287751]
[1765550594884,0.04451073,92514.0,92512.0,0.0108094]
[1765550595131,0.01080952,92511.0,92508.0,0.01080987]
[1765550595328,0.06179073,92514.0,92513.0,0.01080929]
[1765550595480,0.06179073,92514.0,92513.0,0.22699512]
[1765550595904,0.11180912,92514.0,92513.0,0.22699512]
[1765550596183,0.06179073,92514.0,92513.0,0.01080929]
[1765550596391,0.04451073,92513.0,92510.0,0.01080964]
[1765550596599,0.04451073,92513.0,92504.0,0.01081034]
[1765550596600,0.05001839,92510.0,92504.0,0.01081034]
[1765550596826,0.01081116,92497.0,92493.0,0.01081162]
[1765550597038,0.09452912,92496.0,92494.0,0.00212409]
[1765550597251,0.3377855,92495.0,92494.0,0.00212409]
[1765550597458,0.09452912,92495.0,92494.0,0.00212409]
[1765550597668,0.1215576,92495.0,92494.0,0.21835433]
[1765550597882,0.06942092,92514.0,92510.0,0.01080964]
[1765550598146,0.05001839,92510.0,92507.0,0.22700984]
[1765550598352,0.01080999,92507.0,92494.0,0.00373696]
[1765550598554,0.07704366,92506.0,92505.0,0.21620452]
[1765550598763,0.21620452,92505.0,92498.0,0.01081104]
[1765550598988,0.02896792,92529.0,92494.0,0.00573696]
[1765550598989,0.09452912,92495.0,92494.0,0.00573696]
[1765550599191,0.05001839,92495.0,92494.0,0.00573696]
[1765550600040,0.05001839,92495.0,92494.0,0.00373696]
[1765550600255,0.05101839,92495.0,92494.0,0.00473696]
[1765550600476,0.001,92495.0,92494.0,0.04356696]
[1765550601073,0.001,92495.0,92494.0,0.04556696]
[1765550603604,0.001,92495.0,92494.0,0.37939494]
[1765550603806,0.001,92495.0,92494.0,0.33626696]
[1765550604368,0.001,92495.0,92494.0,0.37939494]
[1765550604768,0.001,92495.0,92494.0,0.37739494]
[1765550605439,0.02152336,92532.0,92529.0,0.01080742]
[1765550605440,0.09452912,92530.0,92529.0,0.01080742]
[1765550606468,0.01080777,92526.0,92522.0,0.01080824]
[1765550606676,0.05001839,92527.0,92524.0,0.22696797]
[1765550606936,0.04451073,92525.0,92524.0,0.22696797]
[1765550607174,0.01080788,92525.0,92522.0,0.01080824]
[1765550607380,0.01080788,92525.0,92517.0,0.01080882]
[1765550607381,0.05001839,92519.0,92518.0,0.22698284]
[1765550607581,0.09452912,92514.0,92513.0,0.21618501]
[1765550607940,0.09452912,92514.0,92494.0,0.02489782]
[1765550607941,0.05001839,92509.0,92508.0,0.21619681]
[1765550608138,0.05001839,92509.0,92508.0,0.21631308]
[1765550608561,0.01080905,92515.0,92508.0,0.01092614]
[1765550608562,0.05001839,92512.0,92508.0,0.01092614]
[1765550608762,0.05001839,92510.0,92509.0,0.01080975]
[1765550609111,0.05001839,92513.0,92511.0,0.01080952]
[1765550609314,0.12155264,92512.0,92511.0,0.01080952]
[1765550610777,0.05001839,92511.0,92509.0,0.01080975]
[1765550610933,0.09452912,92509.0,92508.0,0.00311627]
[1765550611138,0.09452912,92509.0,92508.0,0.00011627]
[1765550611527,0.05001839,92509.0,92508.0,0.00011627]
[1765550611834,0.05001839,92509.0,92508.0,0.21631378]
[1765550612452,0.10283986,92509.0,92508.0,0.00011627]
[1765550612971,0.09452912,92509.0,92508.0,0.00011627]
[1765550613173,0.05001839,92509.0,92508.0,0.00011627]
[1765550613613,0.05401839,92509.0,92508.0,0.00011627]
[1765550613817,0.22697037,92524.0,92508.0,0.00011627]
[1765550613818,0.01080695,92533.0,92520.0,0.21616947]
[1765550613982,0.01080625,92539.0,92529.0,0.01080742]
[1765550614182,0.04451073,92530.0,92529.0,0.22695511]
[1765550614412,0.09452912,92530.0,92529.0,0.22695511]
[1765550614731,0.04451073,92537.0,92536.0,0.0108066]
[1765550615107,0.02701359,92546.0,92538.0,0.01080637]
[1765550615108,0.01080567,92544.0,92538.0,0.01080637]
[1765550615311,0.05001839,92540.0,92537.0,0.01080648]
[1765550615515,0.05001839,92542.0,92540.0,0.01080613]
[1765550615680,0.09452912,92542.0,92540.0,0.01080613]
[1765550615879,0.05001839,92535.0,92530.0,0.0108073]
[1765550616093,0.05001839,92533.0,92532.0,0.22694796]
[1765550616296,0.09212311,92541.0,92540.0,0.21612275]
[1765550616297,0.04451073,92541.0,92540.0,0.21612275]
[1765550616501,0.05001839,92540.0,92538.0,0.22693206]
[1765550616933,0.00011627,92542.0,92539.0,0.01080625]
[1765550617282,0.09452912,92530.0,92529.0,0.01242029]
[1765550617920,0.05001839,92529.0,92526.0,0.01080777]
[1765550618137,0.09452912,92527.0,92526.0,0.01080777]
[1765550618344,0.09452912,92527.0,92526.0,0.01242064]
[1765550618345,0.05001839,92527.0,92526.0,0.01242064]
[1765550620163,0.05001839,92519.0,92513.0,0.01080929]
[1765550620379,0.05001839,92519.0,92497.0,0.0579305]
[1765550620380,0.04451073,92509.0,92505.0,0.21620359]
[1765550620587,0.04451073,92509.0,92506.0,0.0108101]
[1765550620805,0.04451073,92509.0,92504.0,0.21620599]
[1765550620806,0.05001839,92508.0,92504.0,0.22701632]
[1765550621026,0.05001839,92508.0,92505.0,0.2270146]
[1765550621242,0.0594713,92508.0,92505.0,0.2270146]
[1765550621664,0.05001839,92508.0,92505.0,0.2270146]
[1765550622081,0.05001839,92508.0,92504.0,0.22701327]
[1765550622261,0.05001839,92508.0,92505.0,0.01081022]
[1765550622505,0.05001839,92508.0,92506.0,0.21620219]
[1765550622706,0.05001839,92506.0,92504.0,0.00011627]
[1765550622931,0.09452912,92505.0,92504.0,0.00011627]
[1765550624206,0.09852912,92505.0,92504.0,0.00011627]
[1765550624414,0.09452912,92505.0,92504.0,0.00011627]
[1765550624878,0.09852912,92505.0,92504.0,0.00011627]
[1765550625914,0.10152912,92505.0,92504.0,0.00011627]
[1765550626124,0.05701839,92505.0,92504.0,0.01766914]
[1765550626334,0.05701839,92505.0,92504.0,0.00172914]
[1765550626543,0.09852912,92505.0,92504.0,0.00172914]
[1765550626948,0.10152912,92505.0,92504.0,0.00172914]
[1765550627191,0.08911423,92505.0,92504.0,0.00172914]
[1765550627404,0.13462496,92505.0,92504.0,0.00011627]
[1765550627608,0.09011423,92505.0,92504.0,0.00011627]
[1765550627813,0.05401839,92505.0,92504.0,0.00011627]
[1765550628220,0.09452912,92505.0,92504.0,0.00011627]
[1765550628682,0.09952912,92505.0,92504.0,0.00011627]
[1765550628905,0.09452912,92505.0,92504.0,0.00011627]
[1765550629119,0.31073364,92505.0,92504.0,0.00011627]
[1765550629321,0.65628912,92505.0,92504.0,0.00011627]
[1765550629529,0.60443364,92505.0,92504.0,0.00011627]
[1765550629952,0.60143364,92505.0,92504.0,0.00011627]
[1765550630180,0.60543364,92505.0,92504.0,0.00011627]
[1765550630807,0.61043364,92505.0,92504.0,0.00011627]
[1765550631683,0.39422912,92505.0,92504.0,0.00011627]
[1765550631847,0.34971839,92505.0,92504.0,0.00011627]
[1765550632072,0.39194624,92505.0,92504.0,0.00011627]
[1765550632426,0.10352912,92505.0,92504.0,0.00011627]
[1765550633369,0.3467592,92505.0,92504.0,0.00011627]
[1765550633580,0.31973364,92505.0,92504.0,0.00011627]
[1765550635005,0.05901839,92505.0,92504.0,0.00011627]
[1765550635235,0.10352912,92505.0,92504.0,0.00011627]
[1765550635639,0.31973364,92505.0,92504.0,0.00011627]
[1765550635907,0.4036968,92505.0,92504.0,0.00011627]
[1765550636113,0.6943968,92505.0,92504.0,0.00011627]
[1765550638313,0.7176633,92505.0,92504.0,0.00011627]
[1765550638516,0.60145702,92495.0,92494.0,0.00200782]
[1765550638723,0.73109534,92495.0,92494.0,0.00200782]
[1765550639142,0.76017204,92495.0,92494.0,0.00200782]
[1765550639352,0.73109534,92495.0,92494.0,0.00200782]
[1765550640819,0.64196352,92495.0,92494.0,0.00200782]
[1765550641021,0.65196352,92495.0,92494.0,0.00200782]
[1765550641214,0.66096352,92495.0,92494.0,0.00200782]
[1765550641655,0.61645279,92495.0,92494.0,0.00200782]
[1765550641858,0.66096352,92495.0,92494.0,0.00200782]
[1765550642079,0.77147114,92495.0,92494.0,0.00200782]
[1765550642277,0.60150612,92474.0,92473.0,0.01]
[1765550642486,0.60150612,92474.0,92473.0,0.01011642]
[1765550642487,0.61874612,92474.0,92473.0,0.01011642]
[1765550642898,0.61874612,92474.0,92473.0,0.0107209]
[1765550643075,0.72925374,92474.0,92473.0,0.0107209]
[1765550643616,0.73425374,92474.0,92473.0,0.0107209]
[1765550643824,0.74125374,92474.0,92473.0,0.0107209]
[1765550644035,0.76445506,92474.0,92473.0,0.0107209]
[1765550644239,0.75945506,92474.0,92473.0,0.0107209]
[1765550644446,0.75245506,92474.0,92473.0,0.0107209]
[1765550644865,0.76045506,92474.0,92473.0,0.0107209]
[1765550645075,0.75245506,92474.0,92473.0,0.0107209]
[1765550645870,0.75845506,92474.0,92473.0,0.0107209]
[1765550646193,0.75245506,92474.0,92473.0,0.0107209]
[1765550646330,0.76045506,92474.0,92473.0,0.0107209]
[1765550646626,0.75945506,92474.0,92473.0,0.0107209]
[1765550647031,0.76745506,92474.0,92473.0,0.0107209]
[1765550647282,0.60155993,92451.0,92438.0,0.01081806]
[1765550647481,0.61879993,92451.0,92450.0,0.00058847]
[1765550647696,0.61879993,92451.0,92450.0,0.00125076]
[1765550647867,0.5742892,92451.0,92450.0,0.00125076]
[1765550648275,0.5742892,92451.0,92450.0,0.21758391]
[1765550648276,0.11176912,92451.0,92450.0,0.21758391]
[1765550648472,0.11176912,92451.0,92450.0,0.00286363]
[1765550648755,0.09452912,92451.0,92450.0,0.00286363]
[1765550648912,0.01081513,92463.0,92459.0,0.21631209]
[1765550649085,0.21629424,92467.0,92459.0,0.21631209]
[1765550649086,0.02657448,92462.0,92461.0,0.21630741]
[1765550649289,0.02703725,92465.0,92463.0,0.21630273]
[1765550649487,0.05001839,92464.0,92463.0,0.2179156]
[1765550649685,0.05001839,92466.0,92464.0,0.2271154]
[1765550649933,0.05001839,92466.0,92464.0,0.22872827]
[1765550650132,0.01724,92478.0,92472.0,0.01081408]
[1765550650336,0.007,92474.0,92472.0,0.21789455]
[1765550650750,0.02703141,92485.0,92482.0,0.22706949]
[1765550650974,0.01081279,92483.0,92480.0,0.01081314]
[1765550651174,0.22706963,92483.0,92477.0,0.22708348]
[1765550651550,0.05001839,92481.0,92478.0,0.01081338]
[1765550651753,0.05001839,92481.0,92479.0,0.21626531]
[1765550651959,0.00011618,92481.0,92478.0,0.01081338]
[1765550652226,0.00011618,92481.0,92479.0,0.21626531]
[1765550653175,0.05001839,92479.0,92474.0,0.216277]
[1765550653508,0.05001839,92479.0,92476.0,0.22708452]
[1765550653745,0.00011618,92481.0,92480.0,0.21626297]
[1765550654148,0.05513457,92481.0,92480.0,0.21626297]
[1765550654382,0.05013457,92481.0,92480.0,0.21787584]
[1765550654551,0.00725364,92481.0,92480.0,0.21787584]
[1765550654779,0.00011618,92481.0,92480.0,0.00161287]
[1765550655448,0.00311618,92481.0,92480.0,0.00161287]
[1765550656470,0.00711618,92481.0,92480.0,0.00161287]
[1765550656699,0.00311618,92481.0,92480.0,0.21787584]
[1765550656942,0.00311618,92481.0,92480.0,0.00161287]
[1765550657176,0.00711618,92481.0,92480.0,0.00161287]
[1765550657366,0.05001839,92483.0,92481.0,0.01081303]
[1765550657569,0.06024541,92483.0,92481.0,0.01081303]
[1765550657751,0.06024541,92483.0,92480.0,0.00161287]
[1765550657975,0.28731592,92483.0,92480.0,0.00161287]
[1765550658169,0.05301839,92481.0,92480.0,0.00161287]
[1765550658380,0.06724541,92481.0,92480.0,0.00161287]
[1765550658572,0.06424541,92481.0,92480.0,0.00161287]
[1765550659062,0.05401839,92481.0,92480.0,0.00161287]
[1765550659679,0.05001839,92481.0,92480.0,0.00161287]
[1765550660058,0.05001839,92481.0,92480.0,0.00261287]
[1765550660461,0.05001839,92481.0,92480.0,0.00161287]
[1765550660987,0.08280802,92481.0,92480.0,0.001]
[1765550661186,0.2663141,92466.0,92465.0,0.00023032]
[1765550661348,0.2663141,92466.0,92465.0,0.0003465]
[1765550662394,0.2683141,92466.0,92465.0,0.0013465]
[1765550663012,0.5590141,92466.0,92465.0,0.0013465]
[1765550663426,0.5570492,92451.0,92450.0,0.0002]
[1765550663644,0.5742892,92451.0,92450.0,0.00058847]
[1765550663850,0.26641942,92421.0,92400.0,0.0002]
[1765550664061,0.67308488,92421.0,92420.0,0.00031625]
[1765550664479,0.57435942,92421.0,92420.0,0.00031625]
[1765550666344,0.57935942,92421.0,92420.0,0.00131625]
[1765550666570,0.58335942,92421.0,92420.0,0.00131625]
[1765550667368,0.36695839,92421.0,92420.0,0.00131625]
[1765550667586,0.02624,92421.0,92420.0,0.00292912]
[1765550667811,0.009,92421.0,92420.0,0.02456945]
[1765550668014,0.009,92421.0,92420.0,0.00292912]
[1765550668618,0.005,92421.0,92420.0,0.00292912]
[1765550668826,0.005,92421.0,92420.0,0.02456945]
[1765550669006,0.06725839,92437.0,92436.0,0.21636591]
[1765550669175,0.2907,92451.0,92448.0,0.01081689]
[1765550669358,0.02805665,92450.0,92446.0,0.01081712]
[1765550669742,0.01724,92450.0,92447.0,0.010817]
[1765550669947,0.01724,92450.0,92448.0,0.21633783]
[1765550670364,0.01724,92450.0,92440.0,0.01081782]
[1765550670572,0.05001839,92446.0,92443.0,0.21634953]
[1765550670769,0.05001839,92440.0,92436.0,0.01243116]
[1765550670972,0.05001839,92438.0,92436.0,0.00161287]
[1765550671198,0.05001839,92438.0,92432.0,0.01081876]
[1765550671199,0.05001839,92435.0,92432.0,0.01081876]
[1765550671434,0.0608368,92435.0,92431.0,0.01081888]
[1765550671840,0.05001839,92435.0,92432.0,0.01081876]
[1765550672047,0.05001839,92436.0,92435.0,0.21636825]
[1765550672464,0.05001839,92436.0,92435.0,0.21798112]
[1765550672881,0.01022702,92445.0,92435.0,0.21798112]
[1765550672882,0.01022702,92445.0,92443.0,0.21634953]
[1765550673098,0.01081747,92443.0,92436.0,0.01081829]
[1765550673294,0.05001839,92437.0,92431.0,0.01081888]
[1765550673444,0.06024541,92436.0,92431.0,0.01181888]
[1765550673648,0.06024541,92436.0,92431.0,0.001]
[1765550673649,0.05001839,92435.0,92431.0,0.001]
[1765550673870,0.01022702,92434.0,92431.0,0.01181888]
[1765550674085,0.05001839,92432.0,92431.0,0.001]
[1765550674337,0.06024541,92432.0,92431.0,0.001]
[1765550674999,0.06024541,92432.0,92428.0,0.01081923]
[1765550675243,0.06024541,92432.0,92429.0,0.01081911]
[1765550675441,0.06024541,92432.0,92421.0,0.21640082]
[1765550675442,0.05001839,92421.0,92420.0,0.0002]
[1765550675561,0.06725839,92421.0,92420.0,0.0002]
[1765550675930,0.06725839,92421.0,92420.0,0.00310913]
[1765550676173,0.06725839,92434.0,92432.0,0.21637528]
[1765550676360,0.06725839,92434.0,92431.0,0.01081888]
[1765550676561,0.06725839,92434.0,92432.0,0.21637528]
[1765550677881,0.06725839,92434.0,92432.0,0.21798815]
[1765550678228,0.26638898,92434.0,92432.0,0.00161287]
[1765550678437,0.26638898,92434.0,92428.0,0.001]
[1765550678438,0.05001839,92430.0,92428.0,0.001]
[1765550678642,0.05001839,92422.0,92420.0,0.0002]
[1765550678837,0.06024541,92421.0,92420.0,0.0002]
[1765550679255,0.05001839,92421.0,92420.0,0.0002]
[1765550679461,0.09093206,92421.0,92420.0,0.0002]
[1765550679661,0.14501827,92421.0,92420.0,0.0002]